bitfinex-derivatives/quotes_BTCF0:USTF0_20250724
["timestamp","ask_amount","ask_price","bid_price","bid_amount"]
[1753386650341,0.1222,119150.0,119140.0,1.22739699]
[1753386650842,0.2899676,119150.0,119140.0,1.22739699]
[1753386651139,0.2899676,119150.0,119140.0,0.8717117]
[1753386651340,0.2899676,119150.0,119140.0,0.88875931]
[1753386653137,0.1222,119150.0,119140.0,0.88875931]
[1753386653338,0.10865,119150.0,119140.0,1.2444446]
[1753386654747,0.2764176,119150.0,119140.0,1.2444446]
[1753386654933,0.10865,119150.0,119140.0,1.2444446]
[1753386655642,0.10865,119150.0,119140.0,0.88875931]
[1753386655950,0.10865,119150.0,119140.0,1.2444446]
[1753386656642,0.0989,119150.0,119140.0,1.2444446]
[1753386656845,0.2666676,119150.0,119140.0,1.2444446]
[1753386657038,0.2666676,119150.0,119140.0,0.88875931]
[1753386657343,0.0989,119150.0,119140.0,1.2444446]
[1753386657545,0.0989,119150.0,119140.0,0.88875931]
[1753386657844,0.0989,119150.0,119140.0,1.2444446]
[1753386658034,0.2666676,119150.0,119140.0,1.2444446]
[1753386658540,0.004,119150.0,119140.0,1.2444446]
[1753386660240,0.004,119150.0,119140.0,0.6578046]
[1753386660445,0.2905175,119150.0,119140.0,0.88799931]
[1753386660739,0.2905175,119150.0,119140.0,0.30211931]
[1753386660944,0.2905175,119150.0,119140.0,0.88823931]
[1753386661141,0.12275,119150.0,119140.0,1.2439246]
[1753386661348,0.004,119150.0,119140.0,1.2439246]
[1753386662442,0.1717676,119150.0,119140.0,1.2439246]
[1753386662641,0.1717676,119150.0,119140.0,0.88823931]
[1753386662843,0.2281476,119150.0,119140.0,1.2439246]
[1753386664846,0.2281476,119150.0,119140.0,0.88823931]
[1753386665048,0.2281476,119150.0,119140.0,1.2439246]
[1753386665350,0.64620289,119150.0,119140.0,0.88975931]
[1753386665644,0.2905176,119150.0,119140.0,0.88975931]
[1753386665839,0.2905176,119150.0,119140.0,1.2454446]
[1753386666946,0.2905176,119150.0,119140.0,1.22839699]
[1753386667648,0.2905176,119150.0,119140.0,1.22811699]
[1753386669648,0.2757876,119150.0,119140.0,1.22811699]
[1753386670550,0.10802,119150.0,119140.0,1.24499411]
[1753386670848,0.004,119150.0,119140.0,1.24499411]
[1753386671046,0.004,119150.0,119140.0,0.88930882]
[1753386671245,0.004,119150.0,119140.0,1.24499411]
[1753386673949,0.004,119150.0,119140.0,1.32041585]
[1753386678153,0.004,119150.0,119140.0,1.24499411]
[1753386678354,0.004,119150.0,119140.0,1.35058455]
[1753386678550,0.2799951,119170.0,119140.0,1.18280285]
[1753386678753,0.2859493,119170.0,119160.0,0.2866034]
[1753386678953,0.41147773,119170.0,119160.0,0.8733634]
[1753386679555,0.2859493,119170.0,119160.0,0.8733634]
[1753386680061,0.2859493,119170.0,119160.0,1.22904869]
[1753386680353,0.2869493,119170.0,119160.0,1.22904869]
[1753386681149,0.2869493,119170.0,119160.0,0.8733634]
[1753386681758,0.2879493,119170.0,119160.0,0.8733634]
[1753386682961,0.2879493,119170.0,119160.0,0.94136782]
[1753386683457,0.2879493,119170.0,119160.0,1.01679378]
[1753386687155,0.2879493,119170.0,119160.0,0.94136782]
[1753386687864,0.2879493,119170.0,119160.0,1.01679378]
[1753386688161,0.2879493,119170.0,119160.0,1.29705311]
[1753386688373,0.002,119170.0,119160.0,1.29705311]
[1753386688556,0.002,119170.0,119160.0,1.37247907]
[1753386689356,0.002,119170.0,119160.0,1.29705311]
[1753386689559,0.001,119170.0,119160.0,1.29705311]
[1753386689875,0.2859297,119190.0,119180.0,0.2865752]
[1753386690170,0.41212675,119190.0,119180.0,1.22846049]
[1753386690663,0.41212675,119190.0,119180.0,0.8727752]
[1753386690864,0.41212675,119190.0,119180.0,0.70505]
[1753386691367,0.76781204,119190.0,119180.0,0.70505]
[1753386691561,0.41512675,119190.0,119180.0,0.70505]
[1753386691760,0.77081204,119190.0,119180.0,0.70505]
[1753386691961,0.41512675,119190.0,119180.0,0.8727752]
[1753386692160,0.41712675,119190.0,119180.0,0.8727752]
[1753386695470,0.41712675,119190.0,119180.0,0.71445567]
[1753386696270,0.77281204,119190.0,119180.0,0.71445567]
[1753386696768,0.77281204,119190.0,119180.0,0.08212567]
[1753386696964,0.77281204,119190.0,119180.0,0.59508567]
[1753386698167,0.77281204,119190.0,119180.0,0.00940567]
[1753386698368,0.77281204,119190.0,119180.0,0.58556]
[1753386699070,0.77281204,119190.0,119180.0,0.59494345]
[1753386700771,0.77281204,119190.0,119180.0,0.00938345]
[1753386700974,0.77281204,119190.0,119180.0,0.5852]
[1753386701870,0.2156252,119180.0,119170.0,0.11828]
[1753386702073,0.64331049,119180.0,119170.0,0.11828]
[1753386702374,0.64331049,119180.0,119170.0,0.70328]
[1753386702571,0.64331049,119180.0,119170.0,0.70324]
[1753386702774,0.64331049,119180.0,119170.0,0.7032]
[1753386703075,0.64531049,119180.0,119170.0,0.7032]
[1753386703375,0.64531049,119180.0,119170.0,0.12743473]
[1753386703574,0.64531049,119180.0,119170.0,0.71223473]
[1753386703975,0.2896252,119180.0,119170.0,0.71223473]
[1753386704370,0.64531049,119180.0,119170.0,0.71223473]
[1753386705977,0.2896252,119180.0,119170.0,0.71223473]
[1753386706178,0.64531049,119180.0,119170.0,0.71223473]
[1753386712180,0.2896252,119180.0,119170.0,0.71223473]
[1753386712386,0.64531049,119180.0,119170.0,0.71223473]
[1753386714685,0.2896252,119180.0,119170.0,0.71223473]
[1753386718288,0.2896252,119180.0,119170.0,0.87997393]
[1753386718892,0.2896252,119180.0,119170.0,0.71223473]
[1753386719190,0.2896252,119180.0,119170.0,0.87997393]
[1753386719592,0.2896252,119180.0,119170.0,0.71223473]
[1753386720091,0.2896252,119180.0,119170.0,0.87997393]
[1753386720484,0.2896252,119180.0,119170.0,0.95534965]
[1753386721087,0.2896252,119180.0,119170.0,0.78761045]
[1753386721394,0.2896252,119180.0,119170.0,0.95534965]
[1753386721894,0.2896252,119180.0,119170.0,1.31103494]
[1753386722191,0.2748852,119180.0,119170.0,1.31103494]
[1753386722591,0.2896252,119180.0,119170.0,0.78761045]
[1753386722790,0.64531049,119180.0,119170.0,0.78761045]
[1753386726595,0.2896252,119180.0,119170.0,0.95534965]
[1753386726995,0.2896252,119180.0,119170.0,1.31103494]
[1753386727402,0.2896252,119180.0,119170.0,0.78761045]
[1753386728499,0.64531049,119180.0,119170.0,0.78761045]
[1753386729902,0.64531049,119180.0,119170.0,0.71143473]
[1753386730296,0.2896252,119180.0,119170.0,0.71143473]
[1753386730498,0.64531049,119180.0,119170.0,0.71143473]
[1753386736102,0.64531049,119180.0,119170.0,0.95454965]
[1753386737097,0.64531049,119180.0,119170.0,0.95446965]
[1753386737303,0.64531049,119180.0,119170.0,0.78673045]
[1753386738008,0.64531049,119180.0,119170.0,0.20281045]
[1753386738307,0.64531049,119180.0,119170.0,0.78673045]
[1753386740199,0.64531049,119180.0,119170.0,0.20281045]
[1753386740411,0.64531049,119180.0,119170.0,0.78673045]
[1753386741105,0.64531049,119180.0,119170.0,0.20281045]
[1753386741306,0.1677392,119170.0,119160.0,0.11522442]
[1753386741513,0.64245449,119170.0,119160.0,0.75751486]
[1753386741812,0.76855432,119170.0,119160.0,0.65192442]
[1753386742014,0.76855432,119170.0,119160.0,0.66106921]
[1753386742613,0.76855432,119170.0,119160.0,0.07814921]
[1753386742807,0.76855432,119170.0,119160.0,0.06900442]
[1753386743012,1.87599161,119170.0,119160.0,0.06900442]
[1753386744110,1.52030632,119170.0,119160.0,0.06900442]
[1753386744310,1.52130632,119170.0,119160.0,0.06900442]
[1753386744814,1.52130632,119170.0,119160.0,0.06800442]
[1753386745106,1.52130632,119170.0,119160.0,0.001]
[1753386745613,0.2153833,119160.0,119150.0,0.00892509]
[1753386745807,0.2059874,119150.0,119140.0,0.86315408]
[1753386746013,0.64248269,119150.0,119140.0,0.88709408]
[1753386746605,0.64248269,119150.0,119140.0,0.88709498]
[1753386747315,0.64248269,119150.0,119140.0,0.72031358]
[1753386747814,0.64248269,119150.0,119140.0,0.72929865]
[1753386749116,0.64248269,119150.0,119140.0,0.73129865]
[1753386752615,0.64248269,119150.0,119140.0,0.14737865]
[1753386752810,0.76880741,119150.0,119140.0,0.01198507]
[1753386753112,0.76880741,119150.0,119140.0,0.59594507]
[1753386753613,0.41312212,119150.0,119140.0,0.59594507]
[1753386753815,0.76880741,119150.0,119140.0,0.59594507]
[1753386754016,0.76880741,119150.0,119140.0,0.60587507]
[1753386754216,0.76880741,119150.0,119140.0,0.65309507]
[1753386754716,0.76880741,119150.0,119140.0,0.06913507]
[1753386754918,0.76880741,119150.0,119140.0,0.65309507]
[1753386755212,0.76880741,119150.0,119140.0,0.01198507]
[1753386756420,0.76880741,119150.0,119140.0,0.01098507]
[1753386757219,0.76880741,119150.0,119140.0,0.00898507]
[1753386757427,0.76880741,119150.0,119140.0,0.001]
[1753386760316,0.41312212,119150.0,119140.0,0.2438214]
[1753386760516,0.41312212,119150.0,119140.0,0.29909631]
[1753386760923,0.76880741,119150.0,119140.0,0.29909631]
[1753386761424,0.41312212,119150.0,119140.0,0.29909631]
[1753386761620,0.76880741,119150.0,119140.0,0.29909631]
[1753386761924,0.76880741,119150.0,119140.0,0.13131491]
[1753386763026,0.76880741,119150.0,119140.0,0.29909631]
[1753386763224,0.76880741,119150.0,119140.0,0.13131491]
[1753386767221,0.41312212,119150.0,119140.0,0.13131491]
[1753386767426,0.76880741,119150.0,119140.0,0.13131491]
[1753386773334,0.41312212,119150.0,119140.0,0.13131491]
[1753386773631,0.76880741,119150.0,119140.0,0.13131491]
[1753386774131,0.76880741,119150.0,119140.0,0.29909631]
[1753386775520,0.24535472,119150.0,119140.0,0.29909631]
[1753386775724,0.12632472,119150.0,119140.0,0.6547816]
[1753386775924,0.29409202,119150.0,119140.0,0.7300791]
[1753386776331,0.31885202,119150.0,119140.0,0.7300791]
[1753386779536,0.31885202,119150.0,119140.0,0.6547816]
[1753386779737,0.39830202,119150.0,119140.0,0.6547816]
[1753386780034,0.41302202,119150.0,119140.0,0.6547816]
[1753386781535,0.41302202,119150.0,119140.0,0.7300791]
[1753386781736,0.41302202,119150.0,119140.0,0.37439381]
[1753386782742,0.41302202,119150.0,119140.0,0.29909631]
[1753386783443,0.41302202,119150.0,119140.0,0.6547816]
[1753386785552,0.12632472,119150.0,119140.0,0.6547816]
[1753386785934,0.16613472,119150.0,119140.0,0.22683631]
[1753386786136,0.58088602,119150.0,119140.0,0.001]
[1753386786335,0.2867114,119140.0,119130.0,0.01224]
[1753386786542,0.64239669,119140.0,119130.0,0.01224]
[1753386786748,0.93609193,119140.0,119130.0,0.01224]
[1753386787441,0.93609193,119140.0,119130.0,0.01324]
[1753386787948,0.93609193,119140.0,119130.0,0.645]
[1753386789852,0.76821193,119140.0,119130.0,0.645]
[1753386790251,0.41252664,119140.0,119130.0,0.645]
[1753386790446,0.76821193,119140.0,119130.0,0.645]
[1753386790648,0.76821193,119140.0,119130.0,0.64396]
[1753386790855,0.41252664,119140.0,119130.0,0.73703]
[1753386791054,0.76821193,119140.0,119130.0,0.73703]
[1753386791752,0.76821193,119140.0,119130.0,1.11548529]
[1753386791753,0.41252664,119140.0,119130.0,1.11548529]
[1753386791949,0.41252664,119140.0,119130.0,0.7598]
[1753386792758,0.76821193,119140.0,119130.0,0.7598]
[1753386793857,0.41252664,119140.0,119130.0,0.7598]
[1753386794051,0.76821193,119140.0,119130.0,0.7598]
[1753386797452,0.76821193,119140.0,119130.0,0.01324]
[1753386797652,0.41252664,119140.0,119130.0,0.01324]
[1753386798056,0.76821193,119140.0,119130.0,0.6586]
[1753386798858,0.41252664,119140.0,119130.0,0.6586]
[1753386799061,0.76821193,119140.0,119130.0,0.6586]
[1753386799561,0.76821193,119140.0,119130.0,0.73036]
[1753386799757,0.76821193,119140.0,119130.0,0.12908]
[1753386799956,0.76821193,119140.0,119130.0,0.774]
[1753386800553,0.76821193,119140.0,119130.0,0.75123]
[1753386801660,0.41252664,119140.0,119130.0,0.75123]
[1753386801861,0.76821193,119140.0,119130.0,0.75123]
[1753386809364,0.41252664,119140.0,119130.0,0.75123]
[1753386809561,0.76821193,119140.0,119130.0,0.75123]
[1753386810754,0.76821193,119140.0,119130.0,0.10631]
[1753386810960,0.41252664,119140.0,119130.0,0.74587]
[1753386811260,0.76821193,119140.0,119130.0,0.74587]
[1753386812160,0.76821193,119140.0,119130.0,0.74563]
[1753386812767,0.76821193,119140.0,119130.0,0.74551]
[1753386812968,0.41252664,119140.0,119130.0,0.74551]
[1753386813168,0.76821193,119140.0,119130.0,0.10631]
[1753386813462,0.76821193,119140.0,119130.0,0.74535]
[1753386813667,0.41252664,119140.0,119130.0,1.29159869]
[1753386813871,0.39780664,119140.0,119130.0,1.29159869]
[1753386814167,0.39780664,119140.0,119130.0,0.9359134]
[1753386814567,0.41200664,119140.0,119130.0,0.9359134]
[1753386817268,0.33340664,119140.0,119130.0,1.29159869]
[1753386817461,0.1677814,119140.0,119130.0,1.29159869]
[1753386817764,0.1729221,119150.0,119140.0,0.2836193]
[1753386817765,0.2758828,119150.0,119140.0,0.2836193]
[1753386817962,0.72588809,119150.0,119140.0,0.06178]
[1753386818163,0.85222915,119150.0,119140.0,0.05638]
[1753386818664,0.85222915,119150.0,119140.0,0.11584]
[1753386818858,0.85222915,119150.0,119140.0,0.09307]
[1753386819059,0.85322915,119150.0,119140.0,0.09307]
[1753386820067,0.85222915,119150.0,119140.0,0.09307]
[1753386820269,0.2838392,119140.0,119130.0,0.08467]
[1753386820466,0.63952449,119140.0,119130.0,0.67102]
[1753386820666,0.764637,119140.0,119130.0,0.02178]
[1753386820862,0.764637,119140.0,119130.0,0.66998]
[1753386821070,0.764637,119140.0,119130.0,0.703]
[1753386821371,0.764637,119140.0,119130.0,0.71885]
[1753386822267,0.764637,119140.0,119130.0,0.71985]
[1753386823065,0.40895171,119140.0,119130.0,0.71985]
[1753386823261,0.764637,119140.0,119130.0,0.66116]
[1753386824273,0.764637,119140.0,119130.0,0.6707]
[1753386824573,0.764637,119140.0,119130.0,0.70372]
[1753386824874,0.764637,119140.0,119130.0,0.72089]
[1753386825074,0.40895171,119140.0,119130.0,0.72089]
[1753386825373,0.764637,119140.0,119130.0,0.72089]
[1753386825573,0.764637,119140.0,119130.0,0.75788]
[1753386831179,0.40895171,119140.0,119130.0,0.75788]
[1753386831381,0.764637,119140.0,119130.0,0.75788]
[1753386834782,0.764637,119140.0,119130.0,0.78098]
[1753386835582,0.40895171,119140.0,119130.0,0.78098]
[1753386835777,0.40895171,119140.0,119130.0,0.9487733]
[1753386835978,0.29289181,119140.0,119130.0,1.30445859]
[1753386836575,0.29289181,119140.0,119130.0,0.9487733]
[1753386840377,0.1677793,119140.0,119130.0,1.30445859]
[1753386842083,0.1677793,119140.0,119130.0,0.9487733]
[1753386843283,0.1677793,119140.0,119130.0,1.0326657]
[1753386843475,0.61187989,119160.0,119150.0,0.1677652]
[1753386843679,0.2838111,119160.0,119150.0,0.9239852]
[1753386843883,0.2690911,119160.0,119150.0,0.9239852]
[1753386844585,0.2710911,119160.0,119150.0,0.9239852]
[1753386844884,0.1927611,119160.0,119150.0,0.9239852]
[1753386845088,0.1927611,119160.0,119150.0,1.27967049]
[1753386845089,0.1917611,119160.0,119150.0,1.27967049]
[1753386845480,0.1917611,119160.0,119150.0,0.9239852]
[1753386846277,0.1907611,119160.0,119150.0,0.9239852]
[1753386849990,0.02301,119160.0,119150.0,0.9239852]
[1753386850388,0.1907611,119160.0,119150.0,0.9239852]
[1753386850687,0.64014639,119160.0,119150.0,0.75622]
[1753386850991,0.64014639,119160.0,119150.0,0.75266]
[1753386851197,0.64014639,119160.0,119150.0,0.9204252]
[1753386852191,0.64014639,119160.0,119150.0,0.75266]
[1753386852993,0.64014639,119160.0,119150.0,0.9204251]
[1753386853194,0.64014639,119160.0,119150.0,0.9193451]
[1753386854893,0.2844611,119160.0,119150.0,0.9193451]
[1753386855787,0.64014639,119160.0,119150.0,0.9193451]
[1753386857490,0.2844611,119160.0,119150.0,0.9193451]
[1753386857691,0.64014639,119160.0,119150.0,0.9193451]
[1753386860186,0.64014639,119160.0,119150.0,0.2852651]
[1753386860391,0.64014639,119160.0,119150.0,0.72536]
[1753386860590,0.64014639,119160.0,119150.0,0.9156952]
[1753386861897,0.2844611,119160.0,119150.0,0.9156952]
[1753386862096,0.64014639,119160.0,119150.0,0.9156952]
[1753386863099,0.1907611,119160.0,119150.0,0.9156952]
[1753386864796,0.3371521,119170.0,119160.0,0.2870511]
[1753386865100,0.3695021,119170.0,119160.0,0.2870511]
[1753386865695,0.2856324,119170.0,119160.0,0.2870511]
[1753386866002,0.2719624,119170.0,119160.0,0.2870511]
[1753386866190,0.2739624,119170.0,119160.0,0.2870511]
[1753386866390,0.2641724,119170.0,119160.0,0.2870511]
[1753386866694,0.1934824,119170.0,119160.0,0.35521532]
[1753386868099,0.003,119170.0,119160.0,0.71090061]
[1753386869496,0.002,119170.0,119160.0,0.71090061]
[1753386869803,0.1904632,119180.0,119170.0,0.2726668]
[1753386869998,0.1904632,119180.0,119170.0,1.27052209]
[1753386870195,0.02274,119180.0,119170.0,1.27052209]
[1753386871503,0.1904627,119180.0,119170.0,1.27052209]
[1753386871902,0.1904627,119180.0,119170.0,0.9148368]
[1753386871903,0.1914627,119180.0,119170.0,0.9148368]
[1753386872101,0.2866127,119180.0,119170.0,0.9148368]
[1753386874307,0.2866127,119180.0,119170.0,0.9130768]
[1753386878309,0.2866127,119180.0,119170.0,0.9121968]
[1753386880110,0.2866127,119180.0,119170.0,0.2870368]
[1753386880307,0.64229799,119180.0,119170.0,0.09673]
[1753386880516,0.64229799,119180.0,119170.0,0.69703]
[1753386881011,0.64229799,119180.0,119170.0,0.71917]
[1753386882714,0.64229799,119180.0,119170.0,0.8869068]
[1753386883116,0.64229799,119180.0,119170.0,0.74254]
[1753386883812,0.64229799,119180.0,119170.0,0.9102768]
[1753386884715,0.64229799,119180.0,119170.0,0.74254]
[1753386885117,0.64229799,119180.0,119170.0,0.9102768]
[1753386886518,0.64229799,119180.0,119170.0,0.71917]
[1753386886719,0.64229799,119180.0,119170.0,0.8869067]
[1753386888611,0.64229799,119180.0,119170.0,0.9102767]
[1753386888821,0.64229799,119180.0,119170.0,0.74254]
[1753386889421,0.64229799,119180.0,119170.0,0.05946]
[1753386889621,0.2875468,119170.0,119160.0,0.33218512]
[1753386889926,0.64323209,119170.0,119160.0,0.78447422]
[1753386890128,0.64323209,119170.0,119160.0,0.95222512]
[1753386890320,0.64323209,119170.0,119160.0,0.78447422]
[1753386890515,0.64323209,119170.0,119160.0,0.06816422]
[1753386890721,0.2875609,119160.0,119150.0,0.09627]
[1753386891027,0.64324619,119160.0,119150.0,0.71587]
[1753386891928,0.64324619,119160.0,119150.0,0.71787]
[1753386893023,0.64324619,119160.0,119150.0,0.71987]
[1753386895330,0.2875609,119160.0,119150.0,0.74324]
[1753386895635,0.64324619,119160.0,119150.0,0.74324]
[1753386896526,0.64324619,119160.0,119150.0,0.12364]
[1753386896722,0.64324619,119160.0,119150.0,0.74156]
[1753386898122,0.64324619,119160.0,119150.0,0.12364]
[1753386898321,1.12462202,119160.0,119150.0,0.004]
[1753386898524,0.2159891,119140.0,119130.0,0.0463]
[1753386898732,0.64327439,119140.0,119130.0,0.62884]
[1753386898929,0.7691283,119140.0,119130.0,0.62884]
[1753386899135,0.7691283,119140.0,119130.0,0.68636]
[1753386899327,0.7691283,119140.0,119130.0,0.70297]
[1753386899736,0.7691283,119140.0,119130.0,0.72511]
[1753386900424,0.7691283,119140.0,119130.0,0.63878]
[1753386900928,0.7691283,119140.0,119130.0,0.72511]
[1753386901127,0.7691283,119140.0,119130.0,0.72711]
[1753386901827,0.41344301,119140.0,119130.0,0.72711]
[1753386902028,0.7691283,119140.0,119130.0,0.72711]
[1753386902832,0.7691283,119140.0,119130.0,0.2783031]
[1753386903040,0.7691283,119140.0,119130.0,0.9174331]
[1753386904833,0.7691283,119140.0,119130.0,0.74964]
[1753386909638,0.41344301,119140.0,119130.0,0.74964]
[1753386909827,0.7691283,119140.0,119130.0,0.74964]
[1753386911436,0.7691283,119140.0,119130.0,0.08837]
[1753386911741,0.7691283,119140.0,119120.0,0.17702785]
[1753386911742,0.2870931,119130.0,119120.0,0.00923185]
[1753386911943,0.64277839,119130.0,119120.0,0.61332]
[1753386912135,0.76890058,119130.0,119120.0,0.62223151]
[1753386912538,0.76890058,119130.0,119120.0,0.66517151]
[1753386912734,0.76890058,119130.0,119120.0,0.67962151]
[1753386913244,0.76890058,119130.0,119120.0,0.68362151]
[1753386913640,0.76890058,119130.0,119120.0,0.63548151]
[1753386913936,0.76890058,119130.0,119120.0,0.63532151]
[1753386914241,0.76890058,119130.0,119120.0,0.68346151]
[1753386914941,0.76890058,119130.0,119120.0,0.74682151]
[1753386916441,0.76890058,119130.0,119120.0,0.91462861]
[1753386916644,0.76890058,119130.0,119120.0,0.74682151]
[1753386919535,0.76890058,119130.0,119120.0,0.72016151]
[1753386919841,0.76890058,119130.0,119120.0,0.62495151]
[1753386921038,0.76890058,119130.0,119120.0,1.2691939]
[1753386921039,0.38938529,119130.0,119120.0,1.2691939]
[1753386921242,0.31871529,119130.0,119120.0,1.2691939]
[1753386921439,0.31871529,119130.0,119120.0,0.91350861]
[1753386921838,0.67440058,119130.0,119120.0,0.91350861]
[1753386922239,0.70673058,119130.0,119120.0,0.91350861]
[1753386922442,0.70673058,119130.0,119120.0,0.91338861]
[1753386922943,0.35104529,119130.0,119120.0,0.91338861]
[1753386923444,0.35104529,119130.0,119120.0,0.74558151]
[1753386923645,0.70673058,119130.0,119120.0,0.74558151]
[1753386923835,0.72223058,119130.0,119120.0,0.74558151]
[1753386924040,0.36654529,119130.0,119120.0,0.74558151]
[1753386924348,0.36654529,119130.0,119120.0,0.74498151]
[1753386925051,0.36654529,119130.0,119120.0,0.91278861]
[1753386926650,0.36654529,119130.0,119120.0,0.74498151]
[1753386927152,0.39881529,119130.0,119120.0,0.91278861]
[1753386927948,0.41321529,119130.0,119120.0,0.91278861]
[1753386930140,0.39881529,119130.0,119120.0,0.91278861]
[1753386933854,0.36654529,119130.0,119120.0,0.91278861]
[1753386934153,0.31871529,119130.0,119120.0,0.91278861]
[1753386936354,0.33421529,119130.0,119120.0,0.91278861]
[1753386936559,0.36654529,119130.0,119120.0,0.91278861]
[1753386939656,0.33421529,119130.0,119120.0,0.91278861]
[1753386940047,0.36786529,119130.0,119120.0,0.91278861]
[1753386940358,0.31871529,119130.0,119120.0,0.91278861]
[1753386940658,0.31871529,119130.0,119120.0,1.2684739]
[1753386941545,0.31871529,119130.0,119120.0,0.91278861]
[1753386942359,0.35236529,119130.0,119120.0,0.91278861]
[1753386943557,0.39106529,119130.0,119120.0,0.91278861]
[1753386944556,0.29391529,119130.0,119120.0,0.91278861]
[1753386944760,0.29391529,119130.0,119120.0,1.2684739]
[1753386945058,0.76853058,119130.0,119120.0,0.13366151]
[1753386945355,0.76853058,119130.0,119120.0,0.63876151]
[1753386945560,0.76853058,119130.0,119120.0,0.02216151]
[1753386945744,0.76853058,119130.0,119120.0,0.63900151]
[1753386946057,0.76853058,119130.0,119120.0,0.67106151]
[1753386946560,0.76853058,119130.0,119120.0,0.68476151]
[1753386946756,0.41284529,119130.0,119120.0,0.68476151]
[1753386946953,0.76853058,119130.0,119120.0,0.68476151]
[1753386947256,0.76853058,119130.0,119120.0,0.70017151]
[1753386948455,0.76853058,119130.0,119120.0,0.72290151]
[1753386949058,0.76853058,119130.0,119120.0,0.10606151]
[1753386949261,0.76853058,119130.0,119120.0,0.72206151]
[1753386949659,0.76853058,119130.0,119120.0,0.88986851]
[1753386950160,0.76853058,119130.0,119120.0,0.91270851]
[1753386951257,0.41284529,119130.0,119120.0,0.91270851]
[1753386951558,0.76853058,119130.0,119120.0,0.91270851]
[1753386951860,0.1677901,119140.0,119120.0,0.91270851]
[1753386951861,0.2412089,119140.0,119130.0,0.283693]
[1753386952360,0.41248284,119140.0,119130.0,0.283693]
[1753386953159,0.41248284,119140.0,119130.0,0.284693]
[1753386953353,0.41248284,119140.0,119130.0,0.285693]
[1753386956354,0.41248284,119140.0,119130.0,0.1179]
[1753386956659,0.41248284,119140.0,119130.0,0.285693]
[1753386961967,0.76816813,119140.0,119130.0,0.285693]
[1753386962468,0.76816813,119140.0,119130.0,0.1179]
[1753386962971,0.76816813,119140.0,119130.0,0.72918]
[1753386963463,0.76816813,119140.0,119130.0,0.896973]
[1753386964370,0.76816813,119140.0,119130.0,0.72918]
[1753386964761,0.76816813,119140.0,119130.0,0.896973]
[1753386965867,0.76816813,119140.0,119130.0,0.896253]
[1753386966372,0.76816813,119140.0,119130.0,0.002]
[1753386966673,0.76816813,119140.0,119130.0,0.61196]
[1753386967669,0.76816813,119140.0,119130.0,0.002]
[1753386967872,0.76816813,119140.0,119130.0,0.61156]
[1753386968868,0.76816813,119140.0,119130.0,0.002]
[1753386969074,0.76816813,119140.0,119130.0,0.61156]
[1753386972377,0.41248284,119140.0,119130.0,0.61156]
[1753386972574,0.76816813,119140.0,119130.0,0.61156]
[1753386974273,0.1677929,119130.0,119120.0,0.00891151]
[1753386974474,0.2064011,119110.0,119100.0,0.11369236]
[1753386974681,0.64398639,119110.0,119100.0,0.73093236]
[1753386974986,0.64398639,119110.0,119100.0,0.76984236]
[1753386975473,0.64398639,119110.0,119100.0,0.77873204]
[1753386976178,0.64498639,119110.0,119100.0,0.17505204]
[1753386976375,0.77132525,119110.0,119100.0,0.09022204]
[1753386976580,0.77132525,119110.0,119100.0,0.69746204]
[1753386976776,0.77132525,119110.0,119100.0,0.08066204]
[1753386976982,0.77132525,119110.0,119100.0,0.62004968]
[1753386978083,0.77132525,119110.0,119100.0,0.62404968]
[1753386978781,0.77132525,119110.0,119100.0,0.62396968]
[1753386979188,0.77132525,119110.0,119100.0,0.01688968]
[1753386979579,0.77132525,119110.0,119100.0,0.61432]
[1753386979782,0.77132525,119110.0,119100.0,0.008]
[1753386981082,0.2156952,119100.0,119090.0,0.72265151]
[1753386981285,0.64400049,119100.0,119090.0,0.70071]
[1753386981584,0.76945393,119100.0,119090.0,0.70071]
[1753386982084,0.76945393,119100.0,119090.0,0.70949511]
[1753386982289,0.77045393,119100.0,119090.0,0.71249511]
[1753386982787,0.77045393,119100.0,119090.0,0.71213511]
[1753386983088,0.41476864,119100.0,119090.0,0.10917511]
[1753386983385,0.77045393,119100.0,119090.0,0.71449511]
[1753386983585,0.77045393,119100.0,119090.0,0.78169268]
[1753386984289,0.77045393,119100.0,119090.0,0.78173268]
[1753386984483,0.77045393,119100.0,119090.0,0.17637268]
[1753386984986,0.77045393,119100.0,119090.0,0.78133268]
[1753386985184,1.37533393,119100.0,119090.0,1e-08]
[1753386985381,1.73101922,119100.0,119090.0,1e-08]
[1753386985590,1.37533393,119100.0,119090.0,1e-08]
[1753386986389,1.37433393,119100.0,119090.0,0.00100001]
[1753386986590,1.37433393,119100.0,119090.0,0.001]
[1753386987895,1.37393393,119100.0,119090.0,0.001]
[1753386988588,1.37393393,119100.0,119090.0,0.07274]
[1753386989680,1.37393393,119100.0,119090.0,0.01056]
[1753386991290,1.37393393,119100.0,119090.0,0.11877]
[1753386991291,0.41376864,119100.0,119090.0,0.11877]
[1753386991492,0.76945393,119100.0,119090.0,0.11877]
[1753386993286,0.76945393,119100.0,119090.0,0.72241]
[1753386996095,0.41376864,119100.0,119090.0,0.72241]
[1753386996293,0.76945393,119100.0,119090.0,0.72241]
[1753387000502,0.79228037,119100.0,119090.0,0.60352]
[1753387000895,0.79228037,119100.0,119090.0,0.64804]
[1753387001196,0.79228037,119100.0,119090.0,0.66223]
[1753387001400,0.79228037,119100.0,119090.0,0.6782]
[1753387001604,0.79228037,119100.0,119090.0,0.70035]
[1753387002799,0.79228037,119100.0,119090.0,0.001]
[1753387003901,0.76945393,119100.0,119090.0,0.001]
[1753387004102,0.79231709,119100.0,119090.0,0.001]
[1753387004598,0.79231709,119100.0,119090.0,0.60348]
[1753387004791,0.79231709,119100.0,119090.0,0.001]
[1753387004993,0.79231709,119100.0,119090.0,0.60348]
[1753387005195,0.79231709,119100.0,119090.0,0.001]
[1753387005399,0.79231709,119100.0,119090.0,0.60348]
[1753387008007,0.4366318,119100.0,119090.0,0.60348]
[1753387008198,0.79231709,119100.0,119090.0,0.60348]
[1753387008905,0.4366318,119100.0,119090.0,0.60348]
[1753387009112,0.79231709,119100.0,119090.0,0.648]
[1753387009304,0.79231709,119100.0,119090.0,0.66219]
[1753387010510,0.4366318,119100.0,119090.0,0.66219]
[1753387010701,0.79231709,119100.0,119090.0,0.66219]
[1753387011008,0.4366318,119100.0,119090.0,0.66219]
[1753387011206,0.79231709,119100.0,119090.0,0.66219]
[1753387016612,0.79231709,119100.0,119090.0,0.67816]
[1753387020713,0.04569,119090.0,119070.0,0.12544917]
[1753387020912,0.99735388,119080.0,119070.0,0.07657917]
[1753387021109,0.2859974,119070.0,119060.0,0.67908]
[1753387021413,0.76790929,119070.0,119060.0,0.70123]
[1753387021611,0.76790929,119070.0,119060.0,0.76856541]
[1753387021817,0.76790929,119070.0,119060.0,0.06733541]
[1753387022007,0.2377115,119060.0,119050.0,0.00857809]